Workbook

Sheet Titulní list (hidden)
B16: ROZBOR HOSPODAŘENÍ FN OLOMOUC
F18: =dat_obdobi -> 1-7/2010
A44: Období od: | B44: 2010-01-01
A45: do: | B45: 2010-07-31
A46: rok: | B46: =YEAR(dat_do) -> 2010
A47: Typ období: | B47: =CONCATENATE(MONTH(dat_od),"-",MONTH(dat_do),"/",YEAR(dat_do)) -> 1-7/2010
A48: Měsíc: | B48: =dat_do -> 2010-07-31
B49: =CONCATENATE("Skut. ", dat_obdobi) -> Skut. 1-7/2010
B50: =CONCATENATE("PLÁN ", dat_rok) -> PLÁN 2010
A51: Předch.obd.od: | B51: =CONCATENATE("1.1.",YEAR(dat_od)-1) -> 1.1.2009
A52: Předch.obd.do: | B52: =CONCATENATE((DAY(dat_do)),".",MONTH(dat_do),".",YEAR(dat_do)-1) -> 31.7.2009
A53: Předch.rok: | B53: =YEAR(dat_dorokpredch) -> 2009
A54: Předch.r. měs. | B54: =dat_do-366 -> 2009-07-30
A55: Predch.typ obd. | B55: =CONCATENATE(MONTH(dat_odrokpredch),"-",MONTH(dat_dorokpredch),"/",YEAR(dat_dorokpredch)) -> 1-7/2009

Sheet Rozbor hospodaření FN Olomouc-1
A1: ROZBOR HOSPODAŘENÍ FN OLOMOUC
A3: =dat_obdobi -> 1-7/2010
D5: Rozpočet | E5: Skutečnost | G5: Rozdíl | H5: Překročení
D6: =YEAR(dat_do) -> 2010 | E6: =dat_obdobi -> 1-7/2010
A7: Náklady bez VPN | D7: 4195228 | E7: 2559818.55 | F7: tis.Kč | G7: =N_bez_VPN-((N_bez_VPN_Rozp/12)*MONTH(dat_do)) -> 112602.2163 | H7: =IF(N_bez_VPN_Rozp <> 0,G7/((N_bez_VPN_Rozp/12)*MONTH(dat_do)),"-") -> 0.04601236711
A8: Náklady celkem vč. VPN | D8: 4468965 | E8: 2734274.489 | F8: tis.Kč | G8: =N_vc_VPN-((N_vc_VPN_Rozp/12)*MONTH(dat_do)) -> 127378.2392
A10: Výnosy bez VPV | D10: 4216203 | E10: 2618999.894 | F10: tis.Kč | G10: =V_bez_VPV-((V_bez_VPV_Rozp/12)*MONTH(dat_do)) -> 159548.144 | H10: =IF(V_bez_VPV_Rozp <> 0,G10/((V_bez_VPV_Rozp/12)*MONTH(dat_do)),"-") -> 0.06487142672
A11: Výnosy celkem vč. VPV | D11: 4489940 | E11: 2793455.834 | F11: tis.Kč | G11: =V_vc_VPV-((V_vc_VPV_Rozp/12)*MONTH(dat_do)) -> 174324.1669
A13: Hospodářský výsledek = | C13: zisk | E13: =ABS(E10-E7) -> 59181.34431 | F13: tis.Kč
A15: Rozbor nákladů:
A17: Překročení nákladů o:
A19: SZM | E19: 56553 | F19: tis. Kč
A20: Léky | E20: 21380 | F20: tis. Kč
A21: Spotřeba energie | E21: 3584 | F21: tis. Kč
A22: Krev | E22: 2999 | F22: tis. Kč
A27: Zásoby: | B27: Limit | C27: =CONCATENATE("Počáteční stav ",DAY(dat_od),".",MONTH(dat_od),".",YEAR(dat_do)) -> Počáteční stav 1.1.2010 | D27: =CONCATENATE("Stav k ",DAY(dat_do),".",MONTH(dat_do),".",YEAR(dat_do)) -> Stav k 31.7.2010 | E27: Snížení / Zvýšení zásob o
A28: Léky | B28: 23300 | C28: 34109 | D28: 34047 | E28: =IF(C28>D28,"snížení","zvýšení") -> snížení | F28: =D28-C28 -> -62
A29: Krev | B29: 13000 | C29: 16522 | D29: 16944 | E29: =IF(C29>D29,"snížení","zvýšení") -> zvýšení | F29: =D29-C29 -> 422
A30: SZM | B30: 14700 | C30: 4824 | D30: 4870 | E30: zvýšení | F30: 46
A31: Dentální slitiny | B31: nestanoven | C31: 242 | D31: 277 | E31: =IF(C31>D31,"snížení","zvýšení") -> zvýšení | F31: =D31-C31 -> 35
A32: Potraviny | B32: 1600 | C32: 1368 | D32: 1412 | E32: zvýšení | F32: 44
A33: Prádlo | B33: 2600 | C33: 1907 | D33: 2156 | E33: zvýšení | F33: 249
A34: Všeobecný materiál | B34: 1000 | C34: 1835 | D34: 1794 | E34: snížení | F34: -41
A35: Údržbový materiál | B35: nestanoven | C35: 936 | D35: 972 | E35: zvýšení | F35: 36
A36: DDHM | B36: nestanoven | C36: 582 | D36: 745 | E36: zvýšení | F36: 163
A37: Materiál na cestě | B37: nestanoven | C37: 787 | D37: 2039 | E37: zvýšení | F37: 1252
A38: Zboží na skladě | B38: nestanoven | C38: 21 | D38: 45 | E38: zvýšení | F38: 24
A39: Zboží na cestě | B39: nestanoven | C39: 0 | D39: 0 | E39: zvýšení | F39: 0
A40: CELKEM | B40: nestanoven | C40: 63132 | D40: 65301 | E40: zvýšení | F40: 2169
A43: Rozbor výnosů
D44: Rozpočet | E44: Skutečnost | G44: Rozdíl | H44: Překročení
D45: =YEAR(dat_do) -> 2010 | E45: =dat_obdobi -> 1-7/2010
A46: Výnosy celkem | D46: 4216203 | E46: 2618999.894 | F46: tis.Kč | G46: =E46-((D46/12)*MONTH(dat_do)) -> 159548.144 | H46: =G46/((D46/12)*MONTH(dat_do)) -> 0.06487142672
A47: z toho:
A48: Výkony pro zdravotní pojišťovny | D48: 3391679 | E48: 2091261.715 | F48: tis.Kč | G48: =E48-((D48/12)*MONTH(dat_do)) -> 112782.2982 | H48: =IF(D48 <> 0,G48/((D48/12)*MONTH(dat_do)),"-") -> 0.05700453451
A49: 671 vybrané činnosti MZ | D49: 5200 | E49: 100 | F49: tis.Kč | G49: -2933.333333 | H49: -0.967032967
A50: 671 VaV | D50: 15000 | E50: 10968 | F50: tis.Kč | G50: 2218 | H50: 0.2534857143
A51: 671 dotace na DDM ISPROFIN | D51: 0 | E51: 214 | F51: tis.Kč | G51: 214 | H51: -
A52: 671 dotace - rezidenční místa | E52: 1844 | F52: tis.Kč | G52: 1844 | H52: -
A53: 691 dotace na provoz z ÚSC | D53: 0 | E53: 0 | F53: tis.Kč | G53: 0 | H53: -
A54: 899 vnitropodnikové výnosy | D54: 273737 | E54: 174456 | F54: tis.Kč | G54: 14776.08333 | H54: 0.09253564031
A55: 604 tržby LS | D55: 381635 | E55: 206313 | F55: tis.Kč | G55: -16307.41667 | H55: -0.07325211636
A56: ostatní výnosy | D56: =D46 -SUM(D48:D55) -> 148952 | E56: =E46 -SUM(E48:E55) -> 133843.1791 | F56: tis.Kč | G56: 46954.51246 | H56: 0.5403985844
A59: Komentář: vlivy do nákladů - vyšší spotřeba léků v centrech, vyšší spotřeba krev.deriv., překročení nákladů na defibrilátory, pořízení
A60: nábytku - vybavení ambulance traumatologie, OUP, marketingu, poradenské služby-inv.strategie,
A61: IOP-porad.služby, školení lékařů a ost.zdr.prac, studium MBA, ,oprava vyzdívky spalovny,
A62: vlivy do výnosů - dorovnání péče min.let VZP 4,5 mil., ost.ZP 98 mil.
B63: odhad ZP z minulých let 19,6 mil. Kč
B64: zvýšení zálohy VZP - zohlednění robot.centra a účtování pitev na pracov.soudního lékařství
B65: na regulačních poplatcích bylo vybráno 20,5 mil. Kč

Sheet Ziskové kliniky FN Olomouc-3 (hidden)
A1: Ziskové kliniky FN Olomouc proti rozpočtu
A2: =dat_obdobi -> 1-7/2010
C30: Klinika | D30: Klinika č. | E30: Zisk
C31: III. Interní klinika | D31: 03 | E31: 1785
C32: Novorozenecké oddělení | D32: 09 | E32: 7117
C33: Dětská klinika | D33: 10 | E33: 221
C34: Ortopedická klinika | D34: 11 | E34: 2031
C35: Otolaryngologická klinika | D35: 13 | E35: 349
C36: Neurologická klinika | D36: 17 | E36: 751
C37: Onkologická klinika | D37: 21 | E37: 212
C38: Klinika nukleární medicíny | D38: 22 | E38: 3229
C39: Klinika zubního lékařství | D39: 24 | E39: 1227
C40: Klinika ústní,čelistní a obl. | D40: 25 | E40: 592
C41: Klinika TVL a kard.reh | D41: 27 | E41: 273
C42: Ústav lékařské genetiky a fet. | D42: 28 | E42: 327
C43: Transfůzní oddělení | D43: 35 | E43: 4710
C44: Oddělení klinické logopedie | D44: 36 | E44: 45
C45: Ústav patologie | D45: 37 | E45: 4179
C46: Ústav soudního lékařství a med | D46: 38 | E46: 3660
C47: Ústav mikrobiologie | D47: 40 | E47: 2183
C48: Ústav imunologie | D48: 41 | E48: 670
C49: Oddělení centrální sterilizace | D49: 56 | E49: 4

Sheet Ziskové kliniky FN Olomouc-0 (hidden)
A1: Ziskové kliniky FN Olomouc
A2: =dat_obdobi -> 1-7/2010
C30: Klinika | D30: Klinika č. | E30: Zisk
C31: I. Interní klinika | D31: 01 | E31: 10546
C32: III. Interní klinika | D32: 03 | E32: 9124
C33: Novorozenecké oddělení | D33: 09 | E33: 16969
C34: Oční klinika | D34: 14 | E34: 1996
C35: Onkologická klinika | D35: 21 | E35: 5515
C36: Klinika nukleární medicíny | D36: 22 | E36: 40350
C37: Klinika rehabilit. a tělových. | D37: 26 | E37: 11647
C38: Ústav lékařské genetiky a fet. | D38: 28 | E38: 14594
C39: Hemato-onkologická klinika | D39: 32 | E39: 18946
C40: Odděl.klin.biochemie a imunoge | D40: 33 | E40: 25772
C41: Radiologická klinika | D41: 34 | E41: 11960
C42: Transfůzní oddělení | D42: 35 | E42: 25914
C43: Ústav patologie | D43: 37 | E43: 22573
C44: Ústav soudního lékařství a med | D44: 38 | E44: 1173
C45: Oddělení klinické psychologie | D45: 39 | E45: 322
C46: Ústav mikrobiologie | D46: 40 | E46: 10175
C47: Ústav imunologie | D47: 41 | E47: 13259
C48: Lékárna | D48: 48 | E48: 1275
C49: Kardiochirurgická klinika | D49: 50 | E49: 7114
C50: Oddělení int.péče chir.oborů | D50: 59 | E50: 1221

Sheet Ztrátové kliniky FN Olomouc-4 (hidden)
A1: Ztrátové kliniky FN Olomouc proti rozpočtu
A2: =dat_obdobi -> 1-7/2010
C30: Klinika | D30: Klinika č. | E30: Ztráta
C31: I. Interní klinika | D31: 01 | E31: 2549
C32: II. Interní klinika | D32: 02 | E32: 1942
C33: I. Chirurgická klinika | D33: 04 | E33: 992
C34: II. Chirurgická klinika | D34: 05 | E34: 1689
C35: Neurochirurgická klinika | D35: 06 | E35: 8189
C36: Klinika anesteziologie a resus | D36: 07 | E36: 7840
C37: Porodnicko-gynekologická klini | D37: 08 | E37: 5214
C38: Urologická klinika | D38: 12 | E38: 3313
C39: Oční klinika | D39: 14 | E39: 4316
C40: Oddělení alergologie | D40: 15 | E40: 194
C41: Klinika plicních nemocí a tube | D41: 16 | E41: 2192
C42: Klinika psychiatrie | D42: 18 | E42: 4887
C43: Klinika pracovního lékařství | D43: 19 | E43: 457
C44: Klinika chorob kožních a pohl. | D44: 20 | E44: 576
C45: Klinika rehabilit. a tělových. | D45: 26 | E45: 5198
C46: Oddělení plastické a estetické | D46: 29 | E46: 1812
C47: Oddělení geriatrie | D47: 30 | E47: 1667
C48: Traumatologické oddělení | D48: 31 | E48: 1564
C49: Hemato-onkologická klinika | D49: 32 | E49: 3125
C50: Odděl.klin.biochemie a imunoge | D50: 33 | E50: 1373
C51: Radiologická klinika | D51: 34 | E51: 4098
C52: Oddělení klinické psychologie | D52: 39 | E52: 166
C53: Ústav farmakologie | D53: 43 | E53: 47
C54: Sociální oddělení | D54: 45 | E54: 338
C55: Transplantační centrum | D55: 46 | E55: 130
C56: Centrální operační sály | D56: 47 | E56: 2226
C57: Lékárna | D57: 48 | E57: 8267
C58: Kardiochirurgická klinika | D58: 50 | E58: 9207
C59: Oddělení lékařské fyziky a rad | D59: 53 | E59: 246
C60: Oddělení int.péče chir.oborů | D60: 59 | E60: 4807
C61: Oddělení urgentního příjmu | D61: 60 | E61: 3091

Sheet Ztrátové kliniky FN Olomouc-0 (hidden)
A1: Ztrátové kliniky FN Olomouc
A2: =dat_obdobi -> 1-7/2010
C30: Klinika | D30: Klinika č. | E30: Ztráta
C31: II. Interní klinika | D31: 02 | E31: 6761
C32: I. Chirurgická klinika | D32: 04 | E32: 10323
C33: II. Chirurgická klinika | D33: 05 | E33: 1823
C34: Neurochirurgická klinika | D34: 06 | E34: 3745
C35: Klinika anesteziologie a resus | D35: 07 | E35: 3904
C36: Porodnicko-gynekologická klini | D36: 08 | E36: 6359
C37: Dětská klinika | D37: 10 | E37: 3705
C38: Ortopedická klinika | D38: 11 | E38: 3093
C39: Urologická klinika | D39: 12 | E39: 9375
C40: Otolaryngologická klinika | D40: 13 | E40: 7275
C41: Oddělení alergologie | D41: 15 | E41: 669
C42: Klinika plicních nemocí a tube | D42: 16 | E42: 8569
C43: Neurologická klinika | D43: 17 | E43: 8522
C44: Klinika psychiatrie | D44: 18 | E44: 3850
C45: Klinika pracovního lékařství | D45: 19 | E45: 1356
C46: Klinika chorob kožních a pohl. | D46: 20 | E46: 1677
C47: Klinika zubního lékařství | D47: 24 | E47: 1957
C48: Klinika ústní,čelistní a obl. | D48: 25 | E48: 793
C49: Klinika TVL a kard.reh | D49: 27 | E49: 715
C50: Oddělení plastické a estetické | D50: 29 | E50: 3991
C51: Oddělení geriatrie | D51: 30 | E51: 7665
C52: Traumatologické oddělení | D52: 31 | E52: 7816
C53: Oddělení klinické logopedie | D53: 36 | E53: 280
C54: Ústav farmakologie | D54: 43 | E54: 705
C55: Sociální oddělení | D55: 45 | E55: 1638
C56: Transplantační centrum | D56: 46 | E56: 642
C57: Centrální operační sály | D57: 47 | E57: 33183
C58: Oddělení lékařské fyziky a rad | D58: 53 | E58: 3008
C59: Oddělení centrální sterilizace | D59: 56 | E59: 11970
C60: Oddělení urgentního příjmu | D60: 60 | E60: 21556

Sheet Vývoj stavu zásob-5
A1: Vývoj stavu zásob
A2: =CONCATENATE(" v průběhu roku ",dat_rok) -> v průběhu roku 2010
B31: Poč.stav | C31: leden | D31: únor | E31: březen | F31: duben | G31: květen | H31: červen | I31: červenec | J31: srpen | K31: září | L31: říjen | M31: listopad | N31: prosinec
A32: Zásoby celkem | B32: 63132 | C32: 65896 | D32: 64030 | E32: 61586 | F32: 61293 | G32: 64426 | H32: 65090 | I32: 65301
A33: Léky | B33: 34109 | C33: 38614 | D33: 35127 | E33: 32237 | F33: 32372 | G33: 34769 | H33: 33213 | I33: 34047
A34: z toho RTG diagn. | B34: 313 | C34: 258 | D34: 117 | E34: 54 | F34: 83 | G34: 94 | H34: 137 | I34: 55
A35: Krev | B35: 16522 | C35: 14695 | D35: 15676 | E35: 15624 | F35: 15581 | G35: 16502 | H35: 17654 | I35: 16944
A36: SZM | B36: 4824 | C36: 4812 | D36: 5758 | E36: 6292 | F36: 5433 | G36: 5714 | H36: 5541 | I36: 4870
A37: z toho lab. diagn.*
A38: Mater.na cestě | B38: 787 | C38: 1296 | D38: 1024 | E38: 971 | F38: 450 | G38: 216 | H38: 1142 | I38: 2039
A40: * včetně meziskladů

Sheet Přehled o čerpání nákladů-6
B1: =CONCATENATE("Přehled o čerpání nákladů roku ",dat_rok) -> Přehled o čerpání nákladů roku 2010
E3: (v tis.Kč)
A5: Položka | B5: =PLAN_rok -> PLÁN 2010 | C5: Poměr pl. | D5: =Skut_typobd -> Skut. 1-7/2010 | E5: SK/PL v %
A6: 501 10 Biologické implantáty | B6: 4200 | C6: =B6/12*(MONTH(dat_do)-MONTH(dat_od)+1) -> 2450 | D6: 4361.27364 | E6: =IF(B6<>0,D6/B6*100,0) -> 103.8398486
A7: 501 12 PHM | B7: 2185 | C7: =B7/12*(MONTH(dat_do)-MONTH(dat_od)+1) -> 1274.583333 | D7: 1437.92711 | E7: 65.80902105
A8: 501 13 Léky | B8: 832484 | C8: 485615.6667 | D8: 506996.1221 | E8: 60.90160557
A9: 501 14 Krev | B9: 49954 | C9: 29139.83333 | D9: 32139.01887 | E9: 64.33722799
A10: 501 15 SZM | B10: 658938 | C10: 384380.5 | D10: 440933.6683 | E10: 66.91580518
A11: 501 16 Potraviny | B11: 38751 | C11: 22604.75 | D11: 23905.50024 | E11: 61.69002152
A12: 501 17 Všeobecný materiál | B12: 34889 | C12: 20351.91667 | D12: 20414.87608 | E12: 58.51378968
A13: 501 18 Náhradní díly | B13: 13412 | C13: 7823.666667 | D13: 5742.70365 | E13: 42.81765322
A14: 501 19 DHM a textil | B14: 25000 | C14: 14583.33333 | D14: 15545.46202 | E14: 62.18184808
A15: 501 60 Knihy a časopisy | B15: 400 | C15: 233.3333333 | D15: 202.0938 | E15: 50.52345
A16: 501 80 Spotř.nák.-z darů, kl.stud. | B16: 4000 | C16: 2333.333333 | D16: 2182.83441 | E16: 54.57086025
A17: 502 Spotřeba energie | B17: 109812 | C17: 64057 | D17: 67640.61301 | E17: 61.5967408
A18: 504 01 Prodané zboží | B18: 3532 | C18: 2060.333333 | D18: 2051.96828 | E18: 58.09649717
A19: 504 95 Prodané LS | B19: 338918 | C19: 197702.1667 | D19: 185214.7848 | E19: 54.64884862
A20: 501 99 Opravy nákl. min. let | B20: 0 | C20: 0 | D20: 0 | E20: 0
A21: Spotřebované nákupy | B21: =SUM(B6:B20) -> 2116475 | C21: 1234610.417 | D21: =SUM(D6:D20) -> 1308768.846 | E21: 61.83719847
A22: 511 Opravy a udržování | B22: 47306 | C22: 27595.16667 | D22: 27083.01817 | E22: 57.25070429
A23: 512 Cestovné | B23: 2850 | C23: 1662.5 | D23: 2397.1716 | E23: 84.11128421
A24: 513 Náklady na reprezentaci | B24: 300 | C24: 175 | D24: 155.32933 | E24: 51.77644333
A25: 518 01 Přepravné | B25: 450 | C25: 262.5 | D25: 1136.6414 | E25: 252.5869778
A26: 518 02 Spoje | B26: 5800 | C26: 3383.333333 | D26: 3191.09406 | E26: 55.0188631
A27: 518 04 Nájemné | B27: 11675 | C27: 6810.416667 | D27: 6888.28845 | E27: 59.00032934
A28: 518 Ostatní služby | B28: 124487 | C28: 72617.41667 | D28: 74841.36239 | E28: 60.11982166
A29: 521 Osobní náklady | B29: 1145130 | C29: 667992.5 | D29: 697121.59 | E29: 60.87706985
A30: 524 Zákonné sociální pojištění | B30: 389344 | C30: 227117.3333 | D30: 237569.6595 | E30: 61.0179326
A31: 525 Ostatní sociální pojištění | B31: 4777 | C31: 2786.583333 | D31: 2464.41787 | E31: 51.58923739
A32: 527 Zákon. soc. poj. (FKSP) | B32: 22747 | C32: 13269.08333 | D32: 13825.73422 | E32: 60.78047312
A33: 528 Náhrady-prac.nesch. | B33: 1100 | C33: 641.6666667 | D33: 720.0975 | E33: 65.46340909
A34: 53 Daně a poplatky | B34: 725 | C34: 422.9166667 | D34: 616.89377 | E34: 85.08879586
A35: 54x,55x,56x Ostatní fin.náklady | B35: 9407 | C35: 5487.416667 | D35: 1178.64704 | E35: 12.52946784
A36: 551 Odpisy | B36: 272360 | C36: 158876.6667 | D36: 157771.121 | E36: 57.92741996
A37: 552,553 ZC prod.DNM, DHM | B37: 0 | C37: 0 | D37: 0 | E37: 0
A38: 544,554 Prodaný mat. a pozemky | B38: 36100 | C38: 21058.33333 | D38: 25122.12214 | E38: 69.59036604
A39: 555 Tvorba zák. rez. a opr.pol. | B39: 0 | C39: 0 | D39: 289.1449 | E39: 0
A40: 59 Daň z příjmů | B40: 4195 | C40: 2447.083333 | D40: -1322.63 | E40: -31.52872467
A41: Přímé náklady celkem | B41: =SUM(B21:B40) -> 4195228 | C41: =SUM(C21:C40) -> 2447216.333 | D41: =SUM(D21:D40) -> 2559818.55 | E41: 61.01738808

Sheet Náklady FN Olomouc v tis.Kč-7 (hidden)
A1: Náklady FN Olomouc v tis. Kč
A2: =dat_obdobi -> 1-7/2010
C24: Náklady FN Olomouc v tis. Kč
C25: Léky | D25: 506996
C26: Krev | D26: 32139
C27: SZM | D27: 440934
C28: Potraviny | D28: 23906
C29: Energie | D29: 67641
C30: Osobní náklady | D30: 951701
C31: Odpisy | D31: 157771
C32: Prodané zboží LS | D32: 185215
C33: Ostatní | D33: =D34-SUM(D25:D32) -> 193516
C34: Celkem | D34: 2559819
A37: Podíl ukazatelů z celkových nákladů
A38: =dat_obdobi -> 1-7/2010

Sheet Čerpání vybraných nákladů-8 (hidden)
A1: Čerpání vybraných nákladů
A2: =CONCATENATE(" v jednotlivých měsících roku ", dat_rok) -> v jednotlivých měsících roku 2010
A27: Název | B27: rozpočet | C27: leden | D27: únor | E27: březen | F27: duben | G27: květen | H27: červen | I27: červenec | J27: srpen | K27: září | L27: říjen | M27: listopad | N27: prosinec
A28: Léky | B28: 69374 | C28: 78495 | D28: 71187 | E28: 80842 | F28: 76334 | G28: 66361 | H28: 69338 | I28: 64438
A29: Krev | B29: 4163 | C29: 4347 | D29: 3630 | E29: 4678 | F29: 5041 | G29: 4738 | H29: 5056 | I29: 4649
A30: SZM | B30: 54912 | C30: 63572 | D30: 77825 | E30: 86153 | F30: 64423 | G30: 49886 | H30: 52108 | I30: 46965

Sheet Přehled o výnosech roku-9
B1: =CONCATENATE("Přehled o výnosech roku ",dat_rok) -> Přehled o výnosech roku 2010
E3: (v tis. Kč)
A5: Položka | B5: =PLAN_rok -> PLÁN 2010 | C5: Poměr pl. | D5: =Skut_typobd -> Skut. 1-7/2010 | E5: SK/PL v %
A6: 601 Tržby za vlastní výrobky | B6: 0 | C6: =B6/12*(MONTH(dat_do)-MONTH(dat_od)+1) -> 0 | D6: 0 | E6: =IF(B6<>0,D6/B6*100,0) -> 0
A7: 602 10,11,13,14 Zdrav. sl. za úhr. | B7: 56685 | C7: =B7/12*(MONTH(dat_do)-MONTH(dat_od)+1) -> 33066.25 | D7: 37156.56154 | E7: 65.54919562
A8: 602 27,28, 29 Zdrav. výk. - běžný rok | B8: 72479 | C8: 42279.41667 | D8: 58820.0342 | E8: 81.1545885
A9: 602 40,42,43,46 Zdrav.vyk.-min.let | B9: 0 | C9: 0 | D9: 140340.9413 | E9: 0
A10: 602 45 Fakturace ZP - běžný rok | B10: 3319200 | C10: 1936200 | D10: 1892100.739 | E10: 57.0047222
A11: 602 Ostatní služby | B11: 960 | C11: 560 | D11: 625.80133 | E11: 65.18763854
A12: 604 Prodej zboží | B12: 4330 | C12: 2525.833333 | D12: 2642.26808 | E12: 61.02235751
A13: 604 Prodané léky a léčiva | B13: 381635 | C13: 222620.4167 | D13: 206313.2424 | E13: 54.06035673
A14: 62 Aktivace - krev a KV | B14: 82795 | C14: 48297.08333 | D14: 53676.76158 | E14: 64.83092165
A15: 648 01,02,03 Použití RF | B15: 2000 | C15: 1166.666667 | D15: 1414.64962 | E15: 70.732481
A16: 648 04 Použití FRM | B16: 47266 | C16: 27571.83333 | D16: 25892.9562 | E16: 54.781357
A17: 603 Tržby z nájem. | B17: 24800 | C17: 14466.66667 | D17: 14365.83786 | E17: 57.92676556
A18: 64x,66x, Ostatní výnosy | B18: 160733 | C18: 93760.91667 | D18: 132412.9404 | E18: 82.38068126
A19: 644,645,646 Tržby z prod. mat. a majetku | B19: 43120 | C19: 25153.33333 | D19: 28510.84212 | E19: 66.11976373
A20: 67x Výnosy z nároků na pr.SR,ÚSC,ost. | B20: 20200 | C20: 11783.33333 | D20: 24726.141 | E20: 122.4066386
A21: Přímé výnosy celkem | B21: 4216203 | C21: =B21/12*(MONTH(dat_do)-MONTH(dat_od)+1) -> 2459451.75 | D21: 2618999.894 | E21: =IF(B21<>0,D21/B21*100,0) -> 62.11749989

Sheet Výnosy FN Olomouc v tis.Kč-10 (hidden)
A1: Výnosy FN Olomouc v tis. Kč
A2: =dat_obdobi -> 1-7/2010
C23: Výnosy FN Olomouc v tis. Kč
C24: Provozní dotace | D24: 24726.141
C25: Výkony pro zdr.poj. | D25: 2091261.715
C26: Aktivace | D26: 53676.76158
C27: Tržby za léčiva | D27: 206313.2424
C28: Ostatní výnosy | D28: =D29-SUM(D23:D27) -> 243022.0341
C29: Celkem | D29: 2618999.894
A34: Podíl ukazatelů z celkových výnosů
A35: =dat_obdobi -> 1-7/2010

Sheet Srovnání nákladů, výnosů a m-11 (hidden)
A1: Srovnání nákladů, výnosů a os. nákladů
A2: =CONCATENATE(" v jednotlivých měsících roku ",dat_rok) -> v jednotlivých měsících roku 2010
B31: leden | C31: únor | D31: březen | E31: duben | F31: květen | G31: červen | H31: červenec | I31: srpen | J31: září | K31: říjen | L31: listopad | M31: prosinec
A32: př. náklady | B32: 368455 | C32: 371761 | D32: 398939 | E32: 368650 | F32: 346620 | G32: 353561 | H32: 351831 | I32: 0 | J32: 0 | K32: 0 | L32: 0 | M32: 0
A33: př. výnosy | B33: 347098 | C33: 357811 | D33: 436745 | E33: 369515 | F33: 365300 | G33: 376696 | H33: 365835 | I33: 0 | J33: 0 | K33: 0 | L33: 0 | M33: 0
A34: os. náklady | B34: 132481 | C34: 130641 | D34: 130411 | E34: 133433 | F34: 137664 | G34: 133930 | H34: 153141 | I34: 0 | J34: 0 | K34: 0 | L34: 0 | M34: 0

Sheet Srovnání nákladů a výnosů mě-12
A1: =CONCATENATE(" Srovnání nákladů a výnosů v roce ",dat_rok) -> Srovnání nákladů a výnosů v roce 2010
A2: =CONCATENATE(" se stejným obdobím roku ",dat_rok-1) -> se stejným obdobím roku 2009
A6: Položka | B6: =mesic_rokpredchoz -> 2009-07-30 | C6: % | D6: =mesic_rok -> 2010-07-31 | E6: % | F6: Rozdíl
A7: Léky | B7: 67748 | C7: =B7/B$19*100 -> 18.51654446 | D7: 64438 | E7: =D7/D$19*100 -> 16.80726247 | F7: =D7-B7 -> -3310
A8: Krev | B8: 3900 | C8: 1.065928491 | D8: 4649 | E8: 1.212591378 | F8: =D8-B8 -> 749
A9: SZM | B9: 43608 | C9: 11.91872042 | D9: 46965 | E9: 12.24980728 | F9: 3357
A10: Potraviny | B10: 2756 | C10: 0.7532561336 | D10: 2888 | E10: 0.7532725101 | F10: 132
A11: Všeobecný materiál | B11: 3333 | C11: 0.9109588873 | D11: 2727 | E11: 0.7112791326 | F11: -606
A12: Spotřeba energie | B12: 6561 | C12: 1.7932197 | D12: 7023 | E12: 1.831798074 | F12: 462
A13: Opravy a udržování | B13: 3026 | C13: 0.827051183 | D13: 5571 | E13: 1.453075192 | F13: 2545
A14: Osobní náklady | B14: 133481 | C14: 36.48235921 | D14: 153140.5426 | E14: 39.94340752 | F14: 19659.54259
A15: Odpisy | B15: 21035 | C15: 5.749180976 | D15: 22452 | E15: 5.856119944 | F15: 1417
A16: Vnitropodnik. náklady | B16: 25378.65037 | C16: 6.936365767 | D16: 31562.50952 | E16: 8.232399852 | F16: 6183.85915
A17: Ostatní náklady | B17: =B19- SUM(B7:B16) - B18 -> 55051.55188 | C17: 15.04641477 | D17: =D19- SUM(D7:D16) - D18 -> 41977.7345 | E17: 10.94898665 | F17: -13073.81738
A18: Opravy nákladů min. let | B18: 0 | C18: 0 | D18: 0 | E18: 0 | F18: 0
A19: Náklady celkem | B19: 365878.2022 | C19: 100 | D19: 383393.7866 | E19: 100 | F19: 17515.58436
A20: Tržby za vl. výrobky | B20: 0 | C20: =B20/B$35*100 -> 0 | D20: 0 | E20: =D20/D$35*100 -> 0 | F20: 0
A21: Zdr. služby za úhradu | B21: 4235.68609 | C21: 1.014003694 | D21: 4221.13721 | E21: 1.062195686 | F21: -14.54888
A22: Tržby z nájemného | B22: 2661.562 | C22: 0.6371656544 | D22: 2098.52919 | E22: 0.5280682766 | F22: -563.03281
A23: Zdrav. výk. - běžný rok | B23: 26525.15926 | C23: 6.350000661 | D23: 6840.24412 | E23: 1.721260748 | F23: -19684.91514
A24: Zdrav. výk. - min. let | B24: 62871.14426 | C24: 15.05106166 | D24: 16704.14493 | E24: 4.203386385 | F24: -46166.99933
A25: Fakturace ZP - běžný rok | B25: 238269.749 | C25: 57.04067782 | D25: 267843.5379 | E25: 67.399432 | F25: 29573.78888
A26: Ostatní služby | B26: 108.95835 | C26: 0.02608412593 | D26: 66.42454 | E26: 0.01671489371 | F26: -42.53381
A27: Tržby za prodané léky | B27: 30590 | C27: 7.323104767 | D27: 27236 | E27: 6.853594246 | F27: -3354
A28: Ost. tržby za prodané zboží | B28: 324 | C28: 0.0775641041 | D28: 296 | E28: 0.07448464887 | F28: -28
A29: Aktivace - krev a KV | B29: 6852 | C29: 1.640337164 | D29: 6995 | E29: 1.760203104 | F29: 143
A30: Tržby z prodeje materiálu a majetku | B30: 4039 | C30: 0.966917952 | D30: 3045.38314 | E30: 0.7663320739 | F30: -993.61686
A31: Provozní dotace od zřizovatele | B31: 900 | C31: 0.2154558447 | D31: 4802.8 | E31: 1.208563755 | F31: 3902.8
A32: Vnitropodnik. výnosy | B32: 25379 | C32: 6.075615426 | D32: 31562.50952 | E32: 7.942305538 | F32: 6183.50952
A33: Použití rezervního fondu | B33: 314 | C33: 0.07517015027 | D33: 410 | E33: 0.1031713042 | F33: 96
A34: Ostatní výnosy | B34: =B35 - SUM(B20:B33) -> 14648.74104 | C34: 3.506840972 | D34: =D35 - SUM(D20:D33) -> 25275.61158 | E34: 6.360287343 | F34: 10626.87054
A35: Výnosy celkem | B35: 417719 | C35: 100 | D35: 397397.3221 | E35: 100 | F35: -20321.67789
A36: Hospodářský výsledek | B36: =B35-B19 -> 51840.79775 | D36: =D35-D19 -> 14003.5355 | F36: -37837.26225
A37: Průměrný počet lůžek | B37: 1396 | D37: 1392 | F37: -4
A38: Počet oš. dnů | B38: 25440 | D38: 23938 | F38: -1502
A39: Prům. nákl. na lůžkoden (hospit.) | B39: 3525.687142 | D39: 4364.929013 | F39: 839.241871
A40: Prům. náklady na oš. den FNO | B40: 12279.51238 | D40: 13667.26922 | F40: 1387.756841
A43: Rozdíl:
A44: úspora nákladů (-)
A45: překročení nákladů (+)
A46: snížení výnosů (-)
A47: překročení výnosů (+)

Sheet Srovnání nákladů a výnosů na-13
A1: Srovnání nákladů a výnosů v roce | D1: =dat_rok -> 2010
A2: se stejným obdobím roku | C2: =dat_rok-1 -> 2009
A6: Položka | B6: =dat_obdobirokpredch -> 1-7/2009 | C6: % | D6: =dat_obdobi -> 1-7/2010 | E6: % | F6: Rozdíl
A7: Léky | B7: 472656 | C7: =B7/B$19*100 -> 19.33971258 | D7: 506996 | E7: =D7/D$19*100 -> 18.54224958 | F7: =D7-B7 -> 34340
A8: Krev | B8: 28313 | C8: 1.158485838 | D8: 32139 | E8: 1.175412349 | F8: =D8-B8 -> 3826
A9: SZM | B9: 343991 | C9: 14.07511397 | D9: 440934 | E9: 16.12617906 | F9: 96943
A10: Potraviny | B10: 22289 | C10: 0.9120012308 | D10: 23906 | E10: 0.8743087095 | F10: 1617
A11: Všeobecný materiál | B11: 20673 | C11: 0.845879198 | D11: 20415 | E11: 0.7466331592 | F11: -258
A12: Spotřeba energie | B12: 61278 | C12: 2.507318023 | D12: 67641 | E12: 2.473818933 | F12: 6363
A13: Opravy a udržování | B13: 19220 | C13: 0.7864266524 | D13: 27083 | E13: 0.990500409 | F13: 7863
A14: Osobní náklady | B14: 830558 | C14: 33.98402433 | D14: 951701.4991 | E14: 34.80636282 | F14: 121143.4991
A15: Odpisy | B15: 150556 | C15: 6.160314833 | D15: 157771 | E15: 5.770122957 | F15: 7215
A16: Vnitropodnik. náklady | B16: 158693 | C16: 6.493257271 | D16: 174455.9396 | E16: 6.380337462 | F16: 15762.93955
A17: Ostatní náklady | B17: =B19 - SUM(B7:B16) - B18 -> 335730 | C17: 13.73709782 | D17: =D19 - SUM(D7:D16) - D18 -> 331232.0506 | E17: 12.11407457 | F17: -4497.94942
A18: Opravy nákladů min. let | B18: 9 | C18: 0.0003682538955 | D18: 0 | E18: 0 | F18: -9
A19: Náklady celkem | B19: 2443966 | C19: 100 | D19: 2734274.489 | E19: =SUM(E7:E17) -> 100 | F19: 290308.4892
A20: Tržby za vl. výrobky | B20: 0 | C20: =B20/B$35*100 -> 0 | D20: 0 | E20: =D20/D$19*100 -> 0 | F20: 0
A21: Zdr. služby za úhradu | B21: 35685.84475 | C21: 1.375120891 | D21: 37156.56154 | E21: 1.358918488 | F21: 1470.71679
A22: Tržby z nájemného | B22: 18913.25119 | C22: 0.7288045725 | D22: 14365.83786 | E22: 0.5253985259 | F22: -4547.41333
A23: Zdrav. výk. - běžný rok | B23: 93543.39383 | C23: 3.604607821 | D23: 58820.0342 | E23: 2.151211754 | F23: -34723.35963
A24: Zdrav. výk. - min. let | B24: 126101.1353 | C24: 4.859190155 | D24: 140340.9413 | E24: 5.132657379 | F24: 14239.80606
A25: Fakturace ZP - běžný rok | B25: 1760840.048 | C25: 67.85233619 | D25: 1892100.739 | E25: 69.19937068 | F25: 131260.6917
A26: Ostatní služby | B26: 713.7574 | C26: 0.02750397864 | D26: 625.80133 | E26: =D26/D$35*100 -> 0.02240240646 | F26: -87.95607
A27: Tržby za prodané léky | B27: 210638 | C27: 8.11673974 | D27: 206313 | E27: 7.38558303 | F27: -4325
A28: Ost. tržby za prodané zboží | B28: 2425 | C28: 0.09344512324 | D28: 2642 | E28: 0.09457819122 | F28: 217
A29: Aktivace - krev a KV | B29: 48863 | C29: 1.882890333 | D29: 53677 | E29: 1.921526711 | F29: 4814
A30: Tržby z prodeje materiálu a majetku | B30: 27351 | C30: 1.053945388 | D30: 28510.84212 | E30: 1.02062978 | F30: 1159.84212
A31: Provozní dotace od zřizovatele | B31: 9988 | C31: 0.3848783055 | D31: 24726.141 | E31: 0.8851452278 | F31: 14738.141
A32: Vnitropodnik. výnosy | B32: 158693 | C32: 6.115087399 | D32: 174455.9396 | E32: 6.245165485 | F32: 15762.93955
A33: Použití rezerv. Fondu | B33: 1600 | C33: 0.06165451431 | D33: 1415 | E33: 0.05065410317 | F33: -185
A34: Ostatní výnosy | B34: =B35 - SUM(B20:B33) -> 99750.56991 | C34: 3.843795587 | D34: =D35 - SUM(D20:D33) -> 158305.9953 | E34: 5.667030543 | F34: 58555.42537
A35: Výnosy celkem | B35: 2595106 | C35: 100 | D35: 2793455.834 | E35: 100 | F35: 198349.8335
A36: Hospodářský výsledek | B36: =B35-B19 -> 151140 | D36: =D35-D19 -> 59181.34431 | F36: -91958.65569
A37: Průměrný počet lůžek | B37: 1396 | D37: 1392.428571 | F37: -3.571428571
A38: Počet oš. dnů | B38: 208885 | D38: 205597 | F38: -3288
A39: Prům. nákl. na lůžkoden (hospit.) | B39: 2844.4 | D39: 3574.93009 | F39: 730.5300902
A40: Prům. náklady na oš. den FNO | B40: 10023.87412 | D40: 11539.8172 | F40: 1515.94308
A43: Rozdíl:
A44: úspora nákladů (-)
A45: překročení nákladů (+)
A46: snížení výnosů (-)
A47: překročení výnosů (+)

Sheet Srovnání měs.přímých nákladů-14
A1: Srovnání měsíčních přímých nákladů
A2: =CONCATENATE("v letech ",(dat_rok - 3)," - ",(dat_rok)) -> v letech 2007 - 2010
G25: =dat_rok-3 -> 2007 | H25: =dat_rok-2 -> 2008 | I25: =dat_rok-1 -> 2009 | J25: =dat_rok -> 2010
F26: leden | G26: 281893 | H26: 314446 | I26: 323329 | J26: 368455
F27: únor | G27: 256650 | H27: 291124 | I27: 301656 | J27: 371761
F28: březen | G28: 290042 | H28: 307756 | I28: 333821 | J28: 398939
F29: duben | G29: 272114 | H29: 310025 | I29: 334925 | J29: 368650
F30: květen | G30: 281236 | H30: 299979 | I30: 323913 | J30: 346620
F31: červen | G31: 308643 | H31: 241350 | I31: 327130 | J31: 353561
F32: červenec | G32: 288462 | H32: 323227 | I32: 340500 | J32: 351831
F33: srpen | G33: 282016 | H33: 295521 | I33: 322292
F34: září | G34: 268948 | H34: 314214 | I34: 368941
F35: říjen | G35: 304485 | H35: 325578 | I35: 382151
F36: listopad | G36: 317797 | H36: 330337 | I36: 396024
F37: prosinec | G37: 374472 | H37: 198450 | I37: 475105

Sheet Náklady na lůžkoden-15
A1: Náklady na lůžkoden
A2: =CONCATENATE("ve FN Olomouc v roce ",dat_rok) -> ve FN Olomouc v roce 2010
A8: Počet ošetř. dnů | B8: 23938 | D8: =mesic_rok -> 2010-07-31
A9: Druh nákladu | B9: v tis. Kč | C9: Kč/den | D9: %
A10: Léky a léčiva | B10: 14865.71716 | C10: =B10*1000/B8 -> 621.0091553 | D10: =C10/C17*100 -> 14.22724524
A11: Krev a KV | B11: 4103.209 | C11: =B11*1000/B8 -> 171.4098504 | D11: =C11/C17*100 -> 3.926979108
A12: ZPr | B12: 4881.1006 | C12: =B12*1000/B8 -> 203.9059487 | D12: =C12/C17*100 -> 4.671460821
A13: Potraviny | B13: 1556.58254 | C13: =B13*1000/B8 -> 65.0255886 | D13: =C13/C17*100 -> 1.489728433
A14: Prádlo | B14: 326.36103 | C14: =B14*1000/B8 -> 13.63359637 | D14: =C14/C17*100 -> 0.3123440572
A15: Osobní náklady | B15: 54342.77313 | C15: =B15*1000/B8 -> 2270.14676 | D15: =C15/C17*100 -> 52.00878989
A16: Ost.nákl. v lůžkové č. | B16: =B17-SUM(B10:B15) -> 24411.92726 | C16: =B16*1000/B8 -> 1019.798114 | D16: =C16/C17*100 -> 23.36345245
A17: Náklady celkem | B17: 104487.6707 | C17: =SUM(C10:C16) -> 4364.929013 | D17: =SUM(D10:D16) -> 100
A22: Počet ošetř. dnů | B22: 205597 | D22: =dat_obdobi -> 1-7/2010
A23: Druh nákladu | B23: v tis. Kč | C23: Kč/den | D23: %
A24: Léky a léčiva | B24: 122055.1446 | C24: =B24*1000/B22 -> 593.6620895 | D24: =C24/C31*100 -> 16.60625731
A25: Krev a KV | B25: 29330.8925 | C25: =B25*1000/B22 -> 142.6620646 | D25: =C25/C31*100 -> 3.9906253
A26: SZM | B26: 31804.41574 | C26: =B26*1000/B22 -> 154.6929952 | D26: =C26/C31*100 -> 4.327161408
A27: Potraviny | B27: 12779.41986 | C27: =B27*1000/B22 -> 62.15761835 | D27: =C27/C31*100 -> 1.73870864
A28: Prádlo | B28: 2381.71401 | C28: =B28*1000/B22 -> 11.58438114 | D28: =C28/C31*100 -> 0.3240449701
A29: Osobní náklady | B29: 380610.4069 | C29: =B29*1000/B22 -> 1851.244945 | D29: =C29/C31*100 -> 51.78408802
A30: Ost.nákl. v lůžkové č. | B30: =B31-SUM(B24:B29) -> 156032.9082 | C30: =B30*1000/B22 -> 758.9259968 | D30: =C30/C31*100 -> 21.22911435
A31: Náklady celkem | B31: 734994.9018 | C31: =SUM(C24:C30) -> 3574.93009 | D31: =SUM(D24:D30) -> 100

Sheet DA19-lůžkový fond-16
A1: Fakultní nemocnice Olomouc L E D E N – Č E R V E N E C 2 0 1 0
A3: LŮŽKOVÝ FOND A JEHO VYUŽITÍ VČETNĚ SVLS
P4: Počet dnů: 212
A5: Klinika |Prům| Počet ošetřovanců |Prům|Skut. |Uzav.|Počet |Využ.lůžek |Prům.|Počet
A6: |poč.|-----------------------------|den.|lůžko.|lůžka|ošetř. |-----------|ošetř|hosp.
A7: |lůž.|PŘIJ |exTR+|PROP |exTR-|Úmrtí|p.ho|kapac.| |dnů | dny | % |doba |
A8: ==============================================================================================
A9: 1.IK | 62| 1869| 73| 1686| 212| 26| 49| 12804| 430| 10480 |169,0| 81,8| 5,4| 1933
A10: 2.IK | 62| 1352| 62| 1159| 208| 56| 47| 12760| 384| 9921 |160,0| 77,8| 7,0| 1419
A11: 3.IK | 70| 1387| 123| 1222| 212| 57| 50| 12840| 2000| 10618 |151,7| 82,7| 7,1| 1501
A12: GER | 90| 72| 468| 456| 27| 37| 52| 11552| 7528| 10948 |121,6| 94,8| 20,7| 530
A13: PLIC | 61| 1255| 116| 1214| 100| 56| 45| 11726| 1206| 9525 |156,1| 81,2| 7,0| 1371
A14: NEUR | 72| 1228| 46| 1116| 151| 15| 53| 14244| 1020| 11143 |154,8| 78,2| 8,7| 1278
A15: PSY | 90| 494| 29| 510| 11| 0| 49| 12208| 6872| 10290 |114,3| 84,3| 19,7| 522
A16: DK | 100| 3590| 5| 3578| 5| 2| 77| 21200| 0| 16327 |163,3| 77,0| 4,5| 3590
A17: PORGYN | 87| 2441| 28| 2422| 32| 1| 59| 16207| 2237| 12410 |142,6| 76,6| 5,0| 2462
A18: NOVO | 50| 1454| 0| 1452| 3| 7| 47| 10600| 0| 9911 |198,2| 93,5| 6,8| 1458
A19: 1CHIR | 86| 1455| 421| 1433| 396| 24| 62| 16654| 1578| 13145 |152,8| 78,9| 7,1| 1865
A20: 2CHIR | 33| 851| 47| 816| 64| 6| 28| 6921| 75| 5948 |180,2| 85,9| 6,7| 892
A21: NCHIR | 44| 838| 58| 823| 50| 17| 28| 8574| 754| 5893 |133,9| 68,7| 6,6| 893
A22: PCHIR | 18| 519| 25| 523| 21| 0| 11| 3582| 234| 2412 |134,0| 67,3| 4,4| 544
A23: KCHIR | 41| 338| 128| 436| 23| 10| 26| 8328| 364| 5539 |135,1| 66,5| 11,8| 468
A24: TRAUM | 33| 1168| 38| 1063| 131| 3| 23| 6996| 0| 4961 |150,3| 70,9| 4,1| 1202
A25: KAR | 10| 122| 167| 48| 164| 77| 7| 2020| 100| 1522 |152,2| 75,3| 5,3| 289
A26: ORT | 72| 1533| 35| 1465| 95| 0| 39| 10031| 5233| 8264 |114,8| 82,4| 5,3| 1564
A27: URO | 32| 871| 306| 846| 315| 5| 25| 6721| 63| 5242 |163,8| 78,0| 4,5| 1172
A28: ORL | 40| 940| 76| 930| 73| 4| 23| 7589| 891| 4918 |123,0| 64,8| 4,9| 1012
A29: OCNI | 26| 480| 4| 473| 3| 0| 13| 5512| 0| 2722 |104,7| 49,4| 5,7| 480
A30: KOZNI | 26| 470| 8| 444| 21| 1| 22| 5449| 63| 4621 |177,7| 84,8| 9,8| 472
A31: ONK | 64| 1377| 19| 1308| 18| 42| 46| 13383| 185| 9773 |152,7| 73,0| 7,1| 1382
A32: HOK | 34| 502| 13| 471| 15| 20| 28| 6874| 334| 6028 |177,3| 87,7| 11,8| 511
A33: REH | 28| 179| 79| 226| 10| 0| 20| 5012| 924| 4314 |154,1| 86,1| 17,5| 247
A34: KNM | 10| 191| 1| 184| 8| 0| 6| 1770| 350| 1289 |128,9| 72,8| 6,7| 192
A35: PRAC | 18| 311| 1| 309| 3| 0| 13| 3438| 378| 2701 |150,1| 78,6| 8,7| 312
A36: IPCHO | 13| 41| 738| 12| 747| 16| 10| 2611| 145| 2023 |155,6| 77,5| 2,6| 777
A37: UCOCH | 20| 518| 30| 520| 26| 0| 13| 4240| 0| 2709 |135,5| 63,9| 5,0| 547
A38: ==============================================================================================
A39: Celkem |1392|27846| 3144|27145| 3144| 482| 970|261846|33348|205597 |147,7| 78,5| 7,4|27737
A41: V Olomouci dne 10.8.2010
A42: Zpracovala: Čapková M.,PZIS FNOL

Sheet DA18-lůžkový fond-17
A2: Fakultní nemocnice Olomouc Č E R V E N E C 2 0 1 0
A4: LŮŽKOVÝ FOND A JEHO VYUŽITÍ VČETNĚ SVLS
A5: Počet dnů: 31
A6: Klinika |Poč.| Počet ošetřovanců |Prům|Skut. |Uzav.|Počet |Využ.lůžek |Prům.|Počet
A7: |lůž.|-----------------------------|den.|lůžk. |lůžka|ošetř. |-----------|ošetř|hosp.
A8: | |PŘIJ |exTR+|PROP |exTR-|Úmrtí|p.ho|kapac.| |dnů | dny | % |doba |
A9: ==============================================================================================
A10: 1.IK | 62| 228| 8| 217| 24| 4| 46| 1922| 0| 1437 | 23,2| 74,8| 6,0| 241
A11: 2.IK | 62| 158| 5| 153| 23| 9| 38| 1538| 384| 1164 | 18,8| 75,7| 6,7| 174
A12: 3.IK | 70| 155| 16| 132| 29| 10| 43| 1576| 594| 1340 | 19,1| 85,0| 7,8| 171
A13: GER | 90| 7| 51| 60| 5| 9| 49| 1705| 1085| 1529 | 17,0| 89,7| 23,2| 66
A14: PLIC | 61| 102| 8| 110| 6| 8| 24| 911| 980| 741 | 12,1| 81,3| 6,3| 117
A15: NEUR | 72| 88| 2| 79| 15| 2| 26| 1362| 870| 798 | 11,1| 58,6| 8,6| 93
A16: PSY | 90| 60| 6| 83| 1| 0| 47| 1776| 1014| 1445 | 16,1| 81,4| 19,3| 75
A17: DK | 100| 397| 1| 448| 2| 1| 65| 3100| 0| 2010 | 20,1| 64,8| 4,7| 425
A18: PORGYN | 87| 326| 1| 333| 1| 0| 54| 1930| 767| 1682 | 19,3| 87,2| 5,1| 331
A19: NOVO | 50| 229| 0| 215| 0| 3| 49| 1550| 0| 1514 | 30,3| 97,7| 6,8| 224
A20: 1CHIR | 86| 148| 53| 161| 59| 2| 47| 1790| 876| 1451 | 16,9| 81,1| 6,9| 212
A21: 2CHIR | 33| 89| 5| 98| 12| 1| 22| 948| 75| 677 | 20,5| 71,4| 6,6| 103
A22: NCHIR | 44| 87| 7| 101| 4| 1| 23| 965| 399| 710 | 16,1| 73,6| 7,1| 100
A23: PCHIR | 18| 51| 0| 65| 3| 0| 9| 414| 144| 285 | 15,8| 68,8| 4,8| 60
A24: KCHIR | 41| 20| 15| 57| 1| 1| 18| 1125| 146| 551 | 13,4| 49,0| 11,7| 47
A25: TRAUM | 33| 141| 7| 141| 14| 0| 23| 1023| 0| 710 | 21,5| 69,4| 4,7| 152
A26: KAR | 10| 18| 27| 6| 25| 11| 7| 310| 0| 226 | 22,6| 72,9| 5,2| 44
A27: ORT | 72| 131| 3| 164| 5| 0| 24| 1068| 1164| 741 | 10,3| 69,4| 4,9| 152
A28: URO | 32| 118| 23| 124| 23| 1| 22| 992| 0| 695 | 21,7| 70,1| 4,8| 145
A29: ORL | 40| 92| 8| 103| 10| 1| 15| 980| 260| 471 | 11,8| 48,1| 4,4| 107
A30: OCNI | 26| 47| 0| 57| 0| 0| 11| 806| 0| 339 | 13,0| 42,1| 6,5| 52
A31: KOZNI | 26| 63| 1| 58| 3| 0| 20| 806| 0| 612 | 23,5| 75,9| 9,8| 63
A32: ONK | 64| 190| 2| 202| 1| 7| 42| 1984| 0| 1296 | 20,3| 65,3| 6,4| 201
A33: HOK | 34| 48| 3| 49| 4| 3| 21| 720| 334| 647 | 19,0| 89,9| 12,1| 54
A34: REH | 28| 19| 7| 3| 1| 0| 4| 168| 700| 121 | 4,3| 72,0| 8,1| 15
A35: KNM | 10| 0| 0| 0| 0| 0| 0| 0| 310| 0 | 0,0| 0,0| 0,0| 0
A36: PRAC | 18| 12| 0| 25| 0| 0| 5| 288| 270| 155 | 8,6| 53,8| 8,4| 19
A37: IPCHO | 13| 6| 86| 3| 76| 1| 8| 325| 78| 242 | 18,6| 74,5| 2,8| 86
A38: UCOCH | 20| 61| 4| 72| 2| 0| 11| 620| 0| 349 | 17,5| 56,3| 5,0| 70
A39: ==============================================================================================
A40: Celkem |1392| 3091| 349| 3319| 349| 75| 772| 32702|10450| 23938 | 17,2| 73,2| 7,4| 3243
A42: V Olomouci dne 10.8.2010
A43: Zpracovala: Čapková M.,PZIS FNOL

Sheet Rozbor investic-FRIM-18
A1: Rozbor investic - FRM k | C1: 2010-07-31
A4: Plán odpisů roku | B4: =dat_rok -> 2010 | C4: 272360000
A5: Alikvotní část odpisů | C5: 158876666.6
A6: Skutečně zúčtované odpisy | C6: 157345349
A7: Limit vlastních zdrojů pro nákup inv.2010 | C7: 361314761
A10: F R M - čerpání | D10: v Kč
A14: DRUH INVESTICE | B14: ČERPÁNÍ CELKEM | C14: TVORBA-VLAST.+CIZÍ ZDR. | D14: NEDOČERPÁNO
A15: vlastní zdroje | C15: =C7 -> 361314761 | D15: =C15-(B16+B17+B18+B19+B20) -> 237957641.6
A16: stavby | B16: 80201672.1
A17: projekty | B17: 6167655.96
A18: Přístrojová technika | B18: 5910460.6
A19: technické zhodnocení | B19: 5184374.5
A20: oprava a udržování | B20: 25892956.2
A21: DARY | C21: 5193552 | D21: =C21-(B22+B23+B24) -> 0
A22: stavby | B22: 200000
A23: projekty | B23: 0
A24: Přístrojová technika | B24: 4993552
A25: OSTATNÍ DOTACE | C25: 0 | D25: =C25-(B26+B27+B28) -> 0
A26: stavby
A27: projekty | B27: 0
A28: Přístrojová technika | B28: 0
A29: SYSTÉM.DOTACE 916 | C29: 53912000 | D29: =C29-(B30+B31+B32+B33) -> 32812946.5
A30: stavby | B30: 21099053.5
A31: projekty | B31: 0
A32: Přístrojová technika | B32: 0
A33: Přístrojová technika - granty | B33: 0
A34: SYSTÉM.DOTACE 916 IOP | C34: 42552250 | D34: =C34-(B35+B36+B37) -> 42552250
A35: stavby | B35: 0
A36: projekty | B36: 0
A37: Přístrojová technika | B37: 0
A38: C E L K E M | B38: =SUM(B15:B37) -> 149649724.9 | C38: =SUM(C15:C37) -> 462972563 | D38: =SUM(D15:D37) -> 313322838.1
A40: Z toho:
A41: čerpání z odpisů | B41: =SUM(B16:B20) -> 123357119.4 | C41: =SUM(C15) -> 361314761 | D41: =SUM(D15) -> 237957641.6
A42: čerpání z dotací | B42: =SUM(B22:B37) -> 26292605.5 | C42: =SUM(C21:C37) -> 101657802 | D42: =SUM(D21:D37) -> 75365196.5

Sheet Celková finanční situace-19
A1: Celková finanční situace:
A3: Rozbor platební neschopnosti FN k | C3: 2010-07-31
A6: Zůstatek na BÚ (bez FKSP) | C6: 172367 | D6: tis. Kč
A9: Potřeba finančních prostředků na mzdy za měsíc | D9: 2010-07-01
A10: celkem | C10: 151088 | D10: tis. Kč
A13: 1. Stav závazků vůči dodavatelům k | C13: 2010-07-31
A15: Závazky | B15: LS | C15: FN | D15: Celkem
A16: do splatnosti | B16: 266464020.8 | C16: 204941679.9 | D16: =SUM(B16:C16) -> 471405700.8
A17: po splat. do 30 dnů | B17: 7180716.35 | C17: 41746321.36 | D17: 48927037.71
A18: 31 - 90 dnů | B18: 605474.27 | C18: 16812503.03 | D18: 17417977.3
A19: 91 - 180 dnů | B19: 0 | C19: 347930.79 | D19: 347930.79
A20: 181 - 360 dnů | B20: 0 | C20: 3339453.89 | D20: 3339453.89
A21: nad 360 dnů | B21: 0 | C21: 309646.56 | D21: 309646.56
A22: C e l k e m | B22: =SUM(B16:B21) -> 274250211.5 | C22: =SUM(C16:C21) -> 267497535.6 | D22: =SUM(D16:D21) -> 541747747
A27: Pohledávky
A29: FN - pouze ve vztahu k odběratel. (úč. 311+324+970) | D29: 456125 | E29: tis. Kč
A30: LS - pouze ve vztahu k odběratelům | D30: 28883 | E30: tis. Kč
A31: Celkem | D31: =SUM(D29:D30) -> 485008 | E31: tis. Kč
B33: z toho po lhůtě splatnosti celkem | D33: 42484 | E33: tis. Kč
A36: Závazky
A38: FN - pouze ve vztahu k dodavatel. (úč.321+314+970) | D38: 267498 | E38: tis. Kč
A39: LS - pouze ve vztahu k dodavatelům | D39: 274250 | E39: tis. Kč
A40: Celkem | D40: =SUM(D38:D39) -> 541748 | E40: tis. Kč
B42: z toho po lhůtě splatnosti celkem | D42: 70342 | E42: tis. Kč

Sheet Nezaplacené pohledávky FN Ol-20
B1: Nezaplacené pohledávky FN Olomouc
B2: k | C2: =dat_do -> 2010-07-31
A5: Kód | B5: Název zdravotní pojišťovny (ZP) | C5: do splatnosti | D5: po splatnosti | E5: Celkem
A6: 111 | B6: Všeobecná zdrav.pojišťovna ČR | C6: 319667118.3 | D6: -19181.86 | E6: =C6+D6 -> 319647936.4
A7: 201 | B7: Vojenská zdrav.pojišťovna ČR | C7: 27761372.25 | D7: 20694671.5 | E7: 48456043.75
A8: 205 | B8: Hutnická zaměstnecká poj. | C8: 0 | D8: 0 | E8: 0
A9: 205 | B9: Česká průmyslová zdravotní poj | C9: 23220801.98 | D9: 12082.21 | E9: 23232884.19
A10: 207 | B10: Oborová zdr.poj.zam.bank a p. | C10: 6490003.47 | D10: 547926.74 | E10: 7037930.21
A11: 209 | B11: Zaměstnanecká poj.ŠKODA | C11: 42299.78 | D11: 0 | E11: 42299.78
A12: 211 | B12: Zdr.poj.ministerstva vnitra CR | C12: 3614993.42 | D12: 25524.99 | E12: 3640518.41
A13: 213 | B13: Revirní bratrská pokladna | C13: 9529985.64 | D13: 137418.71 | E13: 9667404.35
A14: 217 | B14: Zdrav.poj. METAL-ALIANCE | C14: 42380702.14 | D14: 659547.35 | E14: =C14+D14 -> 43040249.49
A15: 222 | B15: Česká národní zdravotní pojiš. | C15: 0 | D15: 0 | E15: 0
A16: 228 | B16: Zdravotní pojišťovny MÉDIA | C16: 1705589.93 | D16: 179369.22 | E16: 1884959.15
E17: 0
E18: 0
B19: Pohledávky celkem (aktivní ZP) | C19: =SUM(C6:C18) -> 434412866.9 | D19: =SUM(D6:D18) -> 22237358.86 | E19: =SUM(E6:E18) -> 456650225.7
A20: 202 | B20: Hornická zaměstnanecká poj. | C20: 0 | D20: 0 | E20: 0
A21: 204 | B21: Zdrav.poj. GARANT-HOSPITAL | C21: 0 | D21: 0 | E21: 0
A22: 206 | B22: Moravská zdravotní pojišťovna | C22: 0 | D22: 0 | E22: 0
A23: 208 | B23: Zdravotní pojišťovna ATLAS | C23: 0 | D23: 0 | E23: 0
A24: 210 | B24: Zdrav.poj. škodováků | C24: 0 | D24: 0 | E24: 0
A25: 214 | B25: Regionální zdrav.poj.REZAPO | C25: 0 | D25: 0 | E25: 0
A26: 215 | B26: Moravskoslezská poj. IMPULS | C26: 0 | D26: 0 | E26: 0
A27: 216 | B27: Zdravotní pojišťovna SALVUS | C27: 0 | D27: 0 | E27: 0
A28: 218 | B28: Zdrav.poj. CRYSTAL | C28: 0 | D28: 0 | E28: 0
A29: 219 | B29: Prostějovská zdravotní poj. | C29: 0 | D29: 0 | E29: 0
A30: 221 | B30: Mendlova zdravotní poj. | C30: 0 | D30: 0 | E30: 0
A31: 223 | B31: Zem.-potrav. zdrav.poj. ZEPO | C31: 0 | D31: 0 | E31: 0
A32: 224 | B32: Zaměstnanecká zdrav.poj. RADIX | C32: 0 | D32: 0 | E32: 0
A33: 225 | B33: Zdravotní pojišťovna SPORT | C33: 0 | D33: 0 | E33: 0
A34: 227 | B34: Pojišťovna AGEL | C34: 0 | D34: 0 | E34: 0
E35: 0
B36: Pohledávky celkem (zaniklé ZP) | C36: =SUM(C20:C35) -> 0 | D36: =SUM(D20:D35) -> 0 | E36: =SUM(E20:E35) -> 0
B37: Slovenské ZP | C37: 0 | D37: 0 | E37: 0
B38: Pohledávky celkem | C38: =C19+C36+C37 -> 434412866.9 | D38: =D19+D36+D37 -> 22237358.86 | E38: =E19+E36+E37 -> 456650225.7

Sheet Pohledávky po zdr. pojišťov.-21
C1: Pohledávky po zdrav. pojišťovnách
D2: k | E2: =dat_do -> 2010-07-31
D46: ZP celkem | E46: VZP | F46: Ostat. ZP
C47: pohl.celkem | D47: =SUM(E47:F47) -> 456650.2257 | E47: 319647.9364 | F47: 137002.2893
C48: pohl.po spl. | D48: =SUM(E48:F48) -> 22237.35886 | E48: -19.18186 | F48: 22256.54072

Sheet Nezaplacené pohledávky-22 (hidden)
C1: Nezaplacené pohledávky k | H1: =dat_do -> 2010-07-31
A36: Zdrav.poj. | B36: VZP | C36: 201 | D36: 205 | E36: 207 | F36: 210 | G36: 211 | H36: 213 | I36: 215 | J36: 217 | K36: 219 | L36: 222 | M36: 225
A37: pohl.celk. | B37: 319647.9364 | C37: 48456.04375 | D37: 23232.88419 | E37: 7037.93021 | F37: 0 | G37: 3640.51841 | H37: 9667.40435 | I37: 0 | J37: 43040.24949 | K37: 0 | L37: 0 | M37: 0
A38: pohl.po spl. | B38: -19.18186 | C38: 20694.6715 | D38: 12.08221 | E38: 547.92674 | F38: 0 | G38: 25.52499 | H38: 137.41871 | I38: 0 | J38: 659.54735 | K38: 0 | L38: 0 | M38: 0

Sheet Hospodaření,fin.sit.,solvent-23
C1: Hospodaření, finanční situace a solventnost
D2: FN Olomouc v roce | F2: =dat_rok -> 2010
D35: HV | E35: Pohledávky | F35: Závazky | G35: Solventnost
C36: 1 | D36: -21.35703585 | E36: 487.5252886 | F36: 584.1 | G36: =SUM(E36-F36) -> -96.57471144
C37: 1-2 | D37: -35.30757039 | E37: 499.6506803 | F37: 582.8 | G37: =SUM(E37-F37) -> -83.14931974
C38: 1-3 | D38: 2.49768088 | E38: 444.6882145 | F38: 617.8 | G38: -173.1117855
C39: 1-4 | D39: 3.36241058 | E39: 452.5176108 | F39: 569.2 | G39: -116.6823892
C40: 1-5 | D40: 22.04242158 | E40: 489.9528183 | F40: 546.7 | G40: -56.74718172
C41: 1-6 | D41: 45.17780881 | E41: 518.7945283 | F41: 572.6 | G41: -53.80547171
C42: 1-7 | D42: 59.18134431 | E42: 484.9931641 | F42: 541.7 | G42: -56.70683586
C43: 1-8
C44: 1-9
C45: 1-10
C46: 1-11
C47: 1-12

Sheet Nezap. pohled. FNOl - souhrn-24 (hidden)
A1: Nezaplacené pohledávky FN Olomouc
A2: =CONCATENATE("k ",DAY(dat_do),".",MONTH(dat_do),".",YEAR(dat_do)) -> k 31.7.2010
A5: Kód | B5: Název zdravotní pojišťovny (ZP) | C5: do splatnosti | D5: po splatnosti | E5: Celkem
A6: ='Nezaplacené pohledávky FN Ol-20'!A6 -> 111 | B6: ='Nezaplacené pohledávky FN Ol-20'!B6 -> Všeobecná zdrav.pojišťovna ČR | C6: ='Nezaplacené pohledávky FN Ol-20'!C6 -> 319667118.3 | D6: ='Nezaplacené pohledávky FN Ol-20'!D6 -> -19181.86 | E6: =C6+D6 -> 319647936.4
A7: ='Nezaplacené pohledávky FN Ol-20'!A7 -> 201 | B7: ='Nezaplacené pohledávky FN Ol-20'!B7 -> Vojenská zdrav.pojišťovna ČR | C7: ='Nezaplacené pohledávky FN Ol-20'!C7 -> 27761372.25 | D7: ='Nezaplacené pohledávky FN Ol-20'!D7 -> 20694671.5 | E7: 48456043.75
A8: ='Nezaplacené pohledávky FN Ol-20'!A8 -> 205 | B8: ='Nezaplacené pohledávky FN Ol-20'!B8 -> Hutnická zaměstnecká poj. | C8: ='Nezaplacené pohledávky FN Ol-20'!C8 -> 0 | D8: ='Nezaplacené pohledávky FN Ol-20'!D8 -> 0 | E8: 0
A9: ='Nezaplacené pohledávky FN Ol-20'!A9 -> 205 | B9: ='Nezaplacené pohledávky FN Ol-20'!B9 -> Česká průmyslová zdravotní poj | C9: ='Nezaplacené pohledávky FN Ol-20'!C9 -> 23220801.98 | D9: ='Nezaplacené pohledávky FN Ol-20'!D9 -> 12082.21 | E9: 23232884.19
A10: ='Nezaplacené pohledávky FN Ol-20'!A10 -> 207 | B10: ='Nezaplacené pohledávky FN Ol-20'!B10 -> Oborová zdr.poj.zam.bank a p. | C10: ='Nezaplacené pohledávky FN Ol-20'!C10 -> 6490003.47 | D10: ='Nezaplacené pohledávky FN Ol-20'!D10 -> 547926.74 | E10: 7037930.21
A11: ='Nezaplacené pohledávky FN Ol-20'!A11 -> 209 | B11: ='Nezaplacené pohledávky FN Ol-20'!B11 -> Zaměstnanecká poj.ŠKODA | C11: ='Nezaplacené pohledávky FN Ol-20'!C11 -> 42299.78 | D11: ='Nezaplacené pohledávky FN Ol-20'!D11 -> 0 | E11: 42299.78
A12: ='Nezaplacené pohledávky FN Ol-20'!A12 -> 211 | B12: ='Nezaplacené pohledávky FN Ol-20'!B12 -> Zdr.poj.ministerstva vnitra CR | C12: ='Nezaplacené pohledávky FN Ol-20'!C12 -> 3614993.42 | D12: ='Nezaplacené pohledávky FN Ol-20'!D12 -> 25524.99 | E12: 3640518.41
A13: ='Nezaplacené pohledávky FN Ol-20'!A13 -> 213 | B13: ='Nezaplacené pohledávky FN Ol-20'!B13 -> Revirní bratrská pokladna | C13: ='Nezaplacené pohledávky FN Ol-20'!C13 -> 9529985.64 | D13: ='Nezaplacené pohledávky FN Ol-20'!D13 -> 137418.71 | E13: 9667404.35
A14: ='Nezaplacené pohledávky FN Ol-20'!A15 -> 222 | B14: ='Nezaplacené pohledávky FN Ol-20'!B15 -> Česká národní zdravotní pojiš. | C14: ='Nezaplacené pohledávky FN Ol-20'!C15 -> 0 | D14: ='Nezaplacené pohledávky FN Ol-20'!D15 -> 0 | E14: 0
A15: ='Nezaplacené pohledávky FN Ol-20'!A16 -> 228 | B15: ='Nezaplacené pohledávky FN Ol-20'!B16 -> Zdravotní pojišťovny MÉDIA | C15: ='Nezaplacené pohledávky FN Ol-20'!C16 -> 1705589.93 | D15: ='Nezaplacené pohledávky FN Ol-20'!D16 -> 179369.22 | E15: 1884959.15
A16: ='Nezaplacené pohledávky FN Ol-20'!A17 -> 0 | B16: ='Nezaplacené pohledávky FN Ol-20'!B17 -> 0 | C16: ='Nezaplacené pohledávky FN Ol-20'!C17 -> 0 | D16: ='Nezaplacené pohledávky FN Ol-20'!D17 -> 0 | E16: 0
A17: ='Nezaplacené pohledávky FN Ol-20'!A18 -> 0 | B17: ='Nezaplacené pohledávky FN Ol-20'!B18 -> 0 | C17: ='Nezaplacené pohledávky FN Ol-20'!C18 -> 0 | D17: ='Nezaplacené pohledávky FN Ol-20'!D18 -> 0 | E17: 0
B18: Pohledávky celkem (aktivní ZP) | C18: =SUM(C6:C17) -> 392032164.7 | D18: =SUM(D6:D17) -> 21577811.51 | E18: =SUM(E6:E17) -> 413609976.2
B19: Pohledávky celkem (zaniklé ZP) | C19: ='Nezaplacené pohledávky FN Ol-20'!C36 -> 0 | D19: ='Nezaplacené pohledávky FN Ol-20'!D36 -> 0 | E19: ='Nezaplacené pohledávky FN Ol-20'!E36 -> 0
B20: Slovenské ZP | C20: =Slovenske_ZP_dospl -> 0 | D20: =Slovenske_ZP_pospl -> 0 | E20: =C20+D20 -> 0
B21: Pohledávky celkem | C21: =C18+C19+C20 -> 392032164.7 | D21: =D18+D19+D20 -> 21577811.51 | E21: =E18+E19+E20 -> 413609976.2

Sheet Vývojová řada nákladů-25
E1: Vývojová řada nákladů
F2: =CONCATENATE("v letech ",YEAR(dat_do)-2," - ",YEAR(dat_do)) -> v letech 2008 - 2010
B38: =CONCATENATE("Ø ",YEAR(dat_do)-2) -> Ø 2008 | C38: =CONCATENATE("Ø ",YEAR(dat_do)-1) -> Ø 2009 | D38: =CONCATENATE("I.",RIGHT(YEAR(dat_do),2)) -> I.10 | E38: =CONCATENATE("II.",RIGHT(YEAR(dat_do),2)) -> II.10 | F38: =CONCATENATE("III.",RIGHT(YEAR(dat_do),2)) -> III.10 | G38: =CONCATENATE("IV.",RIGHT(YEAR(dat_do),2)) -> IV.10 | H38: =CONCATENATE("V.",RIGHT(YEAR(dat_do),2)) -> V.10 | I38: =CONCATENATE("VI.",RIGHT(YEAR(dat_do),2)) -> VI.10 | J38: =CONCATENATE("VII.",RIGHT(YEAR(dat_do),2)) -> VII.10 | K38: =CONCATENATE("VIII.",RIGHT(YEAR(dat_do),2)) -> VIII.10 | L38: =CONCATENATE("IX.",RIGHT(YEAR(dat_do),2)) -> IX.10 | M38: =CONCATENATE("X.",RIGHT(YEAR(dat_do),2)) -> X.10 | N38: =CONCATENATE("XI.",RIGHT(YEAR(dat_do),2)) -> XI.10 | O38: =CONCATENATE("XII.",RIGHT(YEAR(dat_do),2)) -> XII.10
A39: Léky | B39: 58886.60938 | C39: 68993.11458 | D39: 78495.00614 | E39: 71186.8907 | F39: 80842.44362 | G39: 76333.76514 | H39: 66361.09782 | I39: 69338.44768 | J39: 64438.47103
A40: z toho: VLV | B40: 25811.33809 | C40: 5945.025664 | D40: 5053.27684 | E40: 5424.59416 | F40: 8187.97082 | G40: 7088.27916 | H40: 4678.59803 | I40: 4152.83102 | J40: 3855.50208
A41: centra | B41: 7881.186365 | C41: 37807.69 | D41: 47050.6356 | E41: 41008.53107 | F41: 44071.48723 | G41: 31723.04668 | H41: 35348.36268 | I41: 35252.72668 | J41: 33612.30821
A42: Krev | B42: 3422.303363 | C42: 4286.630586 | D42: 4347.04708 | E42: 3630.0563 | F42: 4678.14396 | G42: 5041.03095 | H42: 4738.4558 | I42: 5055.60572 | J42: 4648.67906
A43: SZM | B43: 48845.25605 | C43: 57669.05343 | D43: 63572.34346 | E43: 77825.44716 | F43: 86153.11178 | G43: 64423.19544 | H43: 49886.49044 | I43: 52107.77964 | J43: 46965.30041
A44: Prodej LS | B44: 25951.58575 | C44: 26661.97647 | D44: 22922.72037 | E44: 21967.74285 | F44: 31104.05667 | G44: 24944.32571 | H44: 24541.69011 | I44: 35313.17346 | J44: 24421.07559
A45: Os. náklady | B45: 115119.0559 | C45: 125951.292 | D45: 132480.9112 | E45: 130641.267 | F45: 130410.6538 | G45: 133433.3732 | H45: 137664.3439 | I45: 133930.4074 | J45: 153140.5426
A46: Odpisy | B46: 9957.451378 | C46: 22151.82858 | D46: 22316.279 | E46: 23035.569 | F46: 22676.62 | G46: 22433.96 | H46: 22394.881 | I46: 22461.587 | J46: 22452.225
A47: Př. náklady | B47: 296000.5857 | C47: 352482.2484 | D47: 368454.9864 | E47: 371761.2798 | F47: 398939.4052 | G47: 368650.4458 | H47: 346620.2558 | I47: 353560.8996 | J47: 351831.2771
A49: *VLV = vliv lékové vyhlášky

Sheet Vývojová řada výnosů -26
E1: Vývojová řada výnosů
F2: =CONCATENATE("v letech ",YEAR(dat_do)-2," - ",YEAR(dat_do)) -> v letech 2008 - 2010
B30: =CONCATENATE("Ø ",YEAR(dat_do)-2) -> Ø 2008 | C30: =CONCATENATE("Ø ",YEAR(dat_do)-1) -> Ø 2009 | D30: =CONCATENATE("I.",RIGHT(YEAR(dat_do),2)) -> I.10 | E30: =CONCATENATE("II.",RIGHT(YEAR(dat_do),2)) -> II.10 | F30: =CONCATENATE("III.",RIGHT(YEAR(dat_do),2)) -> III.10 | G30: =CONCATENATE("IV.",RIGHT(YEAR(dat_do),2)) -> IV.10 | H30: =CONCATENATE("V.",RIGHT(YEAR(dat_do),2)) -> V.10 | I30: =CONCATENATE("VI.",RIGHT(YEAR(dat_do),2)) -> VI.10 | J30: =CONCATENATE("VII.",RIGHT(YEAR(dat_do),2)) -> VII.10 | K30: =CONCATENATE("VIII.",RIGHT(YEAR(dat_do),2)) -> VIII.10 | L30: =CONCATENATE("IX.",RIGHT(YEAR(dat_do),2)) -> IX.10 | M30: =CONCATENATE("X.",RIGHT(YEAR(dat_do),2)) -> X.10 | N30: =CONCATENATE("XI.",RIGHT(YEAR(dat_do),2)) -> XI.10 | O30: =CONCATENATE("XII.",RIGHT(YEAR(dat_do),2)) -> XII.10
A31: Fakt. ZP běžný rok | B31: 242648.2124 | C31: 277470.6809 | D31: 267522.904 | E31: 269864.3267 | F31: 271382.389 | G31: 275999.8081 | H31: 304783.6345 | I31: 286683.9292 | J31: 274683.782
A32: Dorov. ZP minul. let | B32: 2335.178226 | C32: 9548.614495 | D32: 22013.40311 | E32: 2900.03237 | F32: 72110.31516 | G32: 13878.65293 | H32: 3761.21171 | I32: 8973.18112 | J32: 16704.14493
A33: Prodej LS | B33: 28611.43977 | C33: 29544.61908 | D33: 25463.88986 | E33: 24551.93713 | F33: 34585.1073 | G33: 27937.42073 | H33: 27478.34246 | I33: 39060.05794 | J33: 27236.487
A34: Přímé výnosy | B34: 305094.6372 | C34: 352687.9779 | D34: 347097.9506 | E34: 357810.7453 | F34: 436744.6565 | G34: 369515.1755 | H34: 365300.2668 | I34: 376696.2869 | J34: 365834.8126

Sheet Vývojová řada HV - 27
E1: Vývojová řada hospodářských výsledků
F2: =CONCATENATE("v letech ",YEAR(dat_do)-2,"-",YEAR(dat_do)) -> v letech 2008-2010
B36: 01 | C36: 02 | D36: 03 | E36: 04 | F36: 05 | G36: 06 | H36: 07 | I36: 08 | J36: 09 | K36: 10 | L36: 11 | M36: 12
A37: =CONCATENATE("HV ",YEAR(dat_do)-2) -> HV 2008 | B37: -31193.58369 | C37: -7114.38203 | D37: 441.17762 | E37: 8042.74969 | F37: 10746.53691 | G37: 67656.09773 | H37: 74.6272 | I37: 8.95152 | J37: 17608.64403 | K37: -11563.22397 | L37: -19354.0164 | M37: 73775.03949
A38: =CONCATENATE("HV ",YEAR(dat_do)-1) -> HV 2009 | B38: 6492.61833 | C38: 18308.92358 | D38: -7937.45901 | E38: -5773.73576 | F38: 46337.23787 | G38: 41870.974 | H38: 51840.8519 | I38: 41112.93109 | J38: -24927.6951 | K38: -15718.64914 | L38: 6463.40567 | M38: -155600.6505
A39: =CONCATENATE("HV ",YEAR(dat_do)) -> HV 2010 | B39: -21357.03585 | C39: -13950.53454 | D39: 37805.25127 | E39: 864.7297 | F39: 18680.011 | G39: 23135.38723 | H39: 14003.5355

Sheet Podíl ukazatelů N a V - 28
A1: Náklady a výnosy FN Olomouc v tis. Kč
A2: =dat_obdobi -> 1-7/2010
D6: Podíl ukazatelů z celkových nákladů
A7: Náklady FN Olomouc v tis. Kč
A8: Léky | B8: 506996
A9: Krev | B9: 32139
A10: SZM | B10: 440934
A11: Potraviny | B11: 23906
A12: Energie | B12: 67641
A13: Osobní náklady | B13: 951701.4991
A14: Odpisy | B14: 157771
A15: Prodané zboží LS | B15: 185215
A16: Ostatní | B16: =B17-SUM(B8:B15) -> 193515.0506
A17: Celkem | B17: 2559818.55
D31: Podíl ukazatelů z celkových výnosů
A32: Výnosy FN Olomouc v tis. Kč
A33: Provozní dotace | B33: 24726.141
A34: Výkony pro zdr.poj. | B34: 2091261.715
A35: Aktivace | B35: 53676.76158
A36: Tržby za léčiva | B36: 206313.2424
A37: Ostatní výnosy | B37: =B38-SUM(B33:B36) -> 243022.0341
A38: Celkem | B38: 2618999.894

Sheet List1
